Workbook

Sheet 基本情報
A1: 相原可奈 | B1: 1 | C1: 女子
A2: 井上由美 | B2: 2 | C2: 女子
A3: 上田晶子 | B3: 3 | C3: 女子
A4: 江藤里美 | B4: 4 | C4: 女子
A5: 小山博美 | B5: 5 | C5: 女子
A6: 加藤孝之 | B6: 1 | C6: 男子
A7: 木島智彦 | B7: 2 | C7: 男子
A8: 工藤優貴 | B8: 3 | C8: 男子
A9: 小林賢治 | B9: 4 | C9: 男子
A10: 桜井康彦 | B10: 5 | C10: 男子

Sheet 成績
B2: 名前 | D2: 性別 | E2: 番号 | F2: テスト | G2: 判定 | H2: 統一 | I2: 点数 | J2: 公立
D3: =IF(B3="","",VLOOKUP(B3,基本情報!A:C,3,0)) ->  | E3: =IF(B3="","",VLOOKUP(B3,基本情報!A:C,2,0)) ->  | F3: 統一 | G3: 偏差値 | H3: 全県 | I3: 偏差値 | J3: 私立
B5: 公立高校 | D5: 基準 | E5: 私立高校 | G5: 基準
D6: =IF(B6="","",VLOOKUP(B6,高校一覧!A2:B39,2,0)) ->  | G6: =IF(E6="","",VLOOKUP(E6,高校一覧!D2:E37,2,0)) ->  | I6: =IF(I5="公立",D6,IF(I5="私立",G6,100)) -> 100
B8: 回数 | C8: 国語 | D8: 数学 | E8: 社会 | F8: 理科 | G8: 英語 | H8: ３科計 | I8: ５科計
B9: 1 | C9: =IF($B$3="",0,VLOOKUP(C$8,INDIRECT($F$3&"!$"&IF($G$3="点数","B","M")&9*$B9-7&":$"&IF($G$3="点数","K","V")&9*$B9-1),$E$3+IF($D$3="女子",1,6),0)) -> 0 | D9: =IF($B$3="",0,VLOOKUP(D$8,INDIRECT($F$3&"!$"&IF($G$3="点数","B","M")&9*$B9-7&":$"&IF($G$3="点数","K","V")&9*$B9-1),$E$3+IF($D$3="女子",1,6),0)) -> 0 | E9: 0 | F9: 0 | G9: 0 | H9: 0 | I9: 0
B10: 2 | C10: =IF($B$3="",0,VLOOKUP(C$8,INDIRECT($F$3&"!$"&IF($G$3="点数","B","M")&9*$B10-7&":$"&IF($G$3="点数","K","V")&9*$B10-1),$E$3+IF($D$3="女子",1,6),0)) -> 0 | D10: 0 | E10: 0 | F10: 0 | G10: 0 | H10: 0 | I10: 0
B11: 3 | C11: 0 | D11: 0 | E11: 0 | F11: 0 | G11: 0 | H11: 0 | I11: 0
B12: 4 | C12: 0 | D12: 0 | E12: 0 | F12: 0 | G12: 0 | H12: 0 | I12: 0
B13: 5 | C13: 0 | D13: 0 | E13: 0 | F13: 0 | G13: 0 | H13: 0 | I13: 0
B14: 6 | C14: 0 | D14: 0 | E14: 0 | F14: 0 | G14: 0 | H14: 0 | I14: 0
B15: 7 | C15: 0 | D15: 0 | E15: 0 | F15: 0 | G15: 0 | H15: 0 | I15: 0
B16: 8 | C16: 0 | D16: 0 | E16: 0 | F16: 0 | G16: 0 | H16: 0 | I16: 0
B17: 9 | C17: 0 | D17: 0 | E17: 0 | F17: 0 | G17: 0 | H17: 0 | I17: 0
B18: 10 | C18: 0 | D18: 0 | E18: 0 | F18: 0 | G18: 0 | H18: 0 | I18: 0
B20: AVG | C20: =AVERAGE(C15:C17) -> 0.0 | D20: =AVERAGE(D15:D17) -> 0.0 | E20: 0.0 | F20: 0.0 | G20: 0.0 | H20: 0.0 | I20: 0.0

Sheet 統一
A2: 1 | B2: 国語 | C2: 51 | D2: 85 | E2: 42 | F2: 59 | H2: 47 | I2: 45 | J2: 35 | K2: 26 | M2: 国語 | N2: 45 | O2: 63 | P2: 41 | Q2: 40 | R2: 46 | S2: 43 | T2: 42 | U2: 37 | V2: 32
B3: 数学 | C3: 40 | D3: 56 | E3: 44 | H3: 69 | I3: 38 | J3: 62 | K3: 38 | M3: 数学 | N3: 44 | O3: 52 | P3: 46 | Q3: 56 | R3: 47 | S3: 58 | T3: 44 | U3: 55 | V3: 44
B4: 社会 | C4: 26 | D4: 72 | E4: 44 | H4: 64 | I4: 30 | J4: 72 | K4: 20 | M4: 社会 | N4: 36 | O4: 59 | P4: 45 | Q4: 59 | R4: 53 | S4: 55 | T4: 38 | U4: 59 | V4: 33
B5: 理科 | C5: 32 | D5: 58 | E5: 69 | H5: 67 | I5: 12 | J5: 63 | K5: 15 | M5: 理科 | N5: 39 | O5: 52 | P5: 58 | Q5: 64 | R5: 43 | S5: 57 | T5: 29 | U5: 55 | V5: 30
B6: 英語 | C6: 32 | D6: 86 | E6: 30 | H6: 51 | I6: 46 | J6: 42 | K6: 25 | M6: 英語 | N6: 40 | O6: 63 | P6: 39 | Q6: 50 | R6: 52 | S6: 48 | T6: 46 | U6: 44 | V6: 37
B7: ３科計 | C7: =C2+C3+C6 -> 123 | D7: 227 | E7: 116 | F7: 59 | G7: 0 | H7: 167 | I7: 129 | J7: 139 | K7: 89 | M7: ３科計 | N7: 42 | O7: 61 | P7: 41 | Q7: 49 | R7: 48 | S7: 50 | T7: 43 | U7: 45 | V7: 36
B8: ５科計 | C8: =SUM(C2:C6) -> 181 | D8: 357 | E8: 229 | F8: 59 | G8: 0 | H8: 298 | I8: 171 | J8: =SUM(J2:J6) -> 274 | K8: 124 | M8: ５科計 | N8: 40 | O8: 59 | P8: 45 | Q8: 54 | R8: 48 | S8: 53 | T8: 39 | U8: 50 | V8: 33
B9: 順位 | C9: =RANK(C8,$C$8:$K$8,0) -> 5 | D9: 1 | E9: 4 | F9: 8 | G9: 9 | H9: 2 | I9: 6 | J9: 3 | K9: 7 | M9: 順位 | N9: =RANK(N8,$N$8:$V$8,0) -> 7 | O9: 1 | P9: 6 | Q9: 2 | R9: 5 | S9: 3 | T9: 8 | U9: 4 | V9: 9
A11: =A2+1 -> 2 | B11: 国語 | C11: 41 | D11: 58 | E11: 47 | H11: 50 | I11: 48 | J11: 53 | K11: 36 | M11: 国語 | N11: 43 | O11: 54 | P11: 47 | Q11: 42 | R11: 49 | S11: 49 | T11: 47 | U11: 51 | V11: 40
B12: 数学 | C12: 26 | D12: 64 | E12: 52 | H12: 62 | I12: 50 | J12: 68 | K12: 41 | M12: 数学 | N12: 38 | O12: 57 | P12: 51 | Q12: 52 | R12: 49 | S12: 56 | T12: 50 | U12: 59 | V12: 45
B13: 社会 | C13: 48 | D13: 74 | E13: 48 | H13: 66 | I13: 38 | J13: 78 | K13: 31 | M13: 社会 | N13: 47 | O13: 60 | P13: 47 | Q13: 62 | R13: 45 | S13: 56 | T13: 42 | U13: 62 | V13: 38
B14: 理科 | C14: 43 | D14: 82 | E14: 64 | H14: 71 | I14: 48 | J14: 71 | K14: 34 | M14: 理科 | N14: 42 | O14: 61 | P14: 52 | Q14: 55 | R14: 48 | S14: 55 | T14: 44 | U14: 55 | V14: 37
B15: 英語 | C15: 49 | D15: 78 | E15: 28 | H15: 69 | I15: 45 | J15: 66 | K15: 21 | M15: 英語 | N15: 47 | O15: 60 | P15: 37 | Q15: 56 | R15: 44 | S15: 56 | T15: 45 | U15: 54 | V15: 34
B16: ３科計 | C16: =C11+C12+C15 -> 116 | D16: 200 | E16: 127 | F16: 0 | G16: 0 | H16: 181 | I16: 143 | J16: =J11+J12+J15 -> 187 | K16: 98 | M16: ３科計 | N16: 42 | O16: 58 | P16: 44 | Q16: 51 | R16: 47 | S16: 54 | T16: 47 | U16: 55 | V16: 38
B17: ５科計 | C17: =SUM(C11:C15) -> 207 | D17: 356 | E17: 239 | F17: 0 | G17: 0 | H17: 318 | I17: 229 | J17: =SUM(J11:J15) -> 336 | K17: 163 | M17: ５科計 | N17: 42 | O17: 60 | P17: 46 | Q17: 55 | R17: 47 | S17: 55 | T17: 45 | U17: 57 | V17: 37
B18: 順位 | C18: =RANK(C17,$C17:$K17,0) -> 6 | D18: 1 | E18: 4 | F18: 8 | G18: 8 | H18: 3 | I18: 5 | J18: 2 | K18: 7 | M18: 順位 | N18: =RANK(N17,$N$17:$V$17,0) -> 8 | O18: 1 | P18: 6 | Q18: 3 | R18: 5 | S18: 3 | T18: 7 | U18: 2 | V18: 9
A20: =A11+1 -> 3 | B20: 国語 | C20: 61 | D20: 71 | E20: 53 | H20: 45 | I20: 65 | J20: 55 | K20: 36 | M20: 国語 | N20: 54 | O20: 60 | P20: 50 | Q20: 49 | R20: 45 | S20: 45 | T20: 57 | U20: 51 | V20: 39
B21: 数学 | C21: 26 | D21: 51 | E21: 39 | H21: 49 | I21: 35 | J21: 43 | K21: 30 | M21: 数学 | N21: 42 | O21: 54 | P21: 48 | Q21: 56 | R21: 45 | S21: 53 | T21: 46 | U21: 50 | V21: 44
B22: 社会 | C22: 26 | D22: 60 | E22: 42 | H22: 62 | I22: 46 | J22: 84 | K22: 30 | M22: 社会 | N22: 39 | O22: 56 | P22: 47 | Q22: 56 | R22: 46 | S22: 57 | T22: 49 | U22: 67 | V22: 41
B23: 理科 | C23: 42 | D23: 69 | E23: 61 | H23: 55 | I23: 48 | J23: 60 | K23: 24 | M23: 理科 | N23: 45 | O23: 57 | P23: 54 | Q23: 55 | R23: 49 | S23: 51 | T23: 48 | U23: 53 | V23: 37
B24: 英語 | C24: 34 | D24: 58 | E24: 26 | H24: 35 | I24: 42 | J24: 43 | K24: 17 | M24: 英語 | N24: 46 | O24: 56 | P24: 42 | Q24: 56 | R24: 49 | S24: 46 | T24: 49 | U24: 50 | V24: 39
B25: ３科計 | C25: =C20+C21+C24 -> 121 | D25: 180 | E25: 118 | F25: 0 | G25: 0 | H25: 129 | I25: 142 | J25: =J20+J21+J24 -> 141 | K25: 83 | M25: ３科計 | N25: 46 | O25: 57 | P25: 46 | Q25: 54 | R25: 46 | S25: 48 | T25: 50 | U25: 50 | V25: 39
B26: ５科計 | C26: =SUM(C20:C24) -> 189 | D26: 309 | E26: 221 | F26: 0 | G26: 0 | H26: 246 | I26: 236 | J26: =SUM(J20:J24) -> 285 | K26: 137 | M26: ５科計 | N26: 44 | O26: 58 | P26: 48 | Q26: 55 | R26: 47 | S26: 51 | T26: 49 | U26: 55 | V26: 38
B27: 順位 | C27: =RANK(C26,$C26:$K26,0) -> 6 | D27: 1 | E27: 5 | F27: 8 | G27: 8 | H27: 3 | I27: 4 | J27: 2 | K27: 7 | M27: 順位 | N27: =RANK(N26,$N$26:$V$26,0) -> 8 | O27: 1 | P27: 6 | Q27: 2 | R27: 7 | S27: 4 | T27: 5 | U27: 2 | V27: 9
A29: =A20+1 -> 4 | B29: 国語 | C29: 65 | D29: 62 | E29: 63 | F29: 61 | G29: 51 | H29: 48 | I29: 47 | J29: 53 | K29: 41 | M29: 国語 | N29: 52 | O29: 51 | P29: 51 | Q29: 50 | R29: 44 | S29: 42 | T29: 42 | U29: 45 | V29: 38
B30: 数学 | C30: 44 | D30: 55 | E30: 34 | F30: 40 | G30: 50 | H30: 50 | I30: 38 | J30: 49 | K30: 43 | M30: 数学 | N30: 49 | O30: 54 | P30: 44 | Q30: 47 | R30: 52 | S30: 52 | T30: 46 | U30: 51 | V30: 48
B31: 社会 | C31: 41 | D31: 66 | E31: 43 | F31: 50 | G31: 29 | H31: 79 | I31: 36 | J31: 77 | K31: 31 | M31: 社会 | N31: 44 | O31: 56 | P31: 45 | Q31: 48 | R31: 38 | S31: 62 | T31: 41 | U31: 61 | V31: 39
B32: 理科 | C32: 35 | D32: 73 | E32: 68 | F32: 64 | G32: 64 | H32: 69 | I32: 46 | J32: 84 | K32: 43 | M32: 理科 | N32: 38 | O32: 57 | P32: 55 | Q32: 53 | R32: 53 | S32: 55 | T32: 44 | U32: 63 | V32: 42
B33: 英語 | C33: 34 | D33: 79 | E33: 22 | F33: 57 | G33: 49 | H33: 62 | I33: 50 | J33: 62 | K33: 35 | M33: 英語 | N33: 44 | O33: 64 | P33: 39 | Q33: 54 | R33: 51 | S33: 56 | T33: 51 | U33: 56 | V33: 45
B34: ３科計 | C34: =C29+C30+C33 -> 143 | D34: 196 | E34: 119 | F34: 158 | G34: 150 | H34: 160 | I34: 135 | J34: =J29+J30+J33 -> 164 | K34: 119 | M34: ３科計 | N34: 48 | O34: 58 | P34: 43 | Q34: 51 | R34: 49 | S34: 51 | T34: 46 | U34: 52 | V34: 43
B35: ５科計 | C35: =SUM(C29:C33) -> 219 | D35: 335 | E35: 230 | F35: 272 | G35: 243 | H35: 308 | I35: 217 | J35: =SUM(J29:J33) -> 325 | K35: 193 | M35: ５科計 | N35: 45 | O35: 58 | P35: 46 | Q35: 51 | R35: 47 | S35: 55 | T35: 44 | U35: 56 | V35: 42
B36: 順位 | C36: =RANK(C35,$C35:$K35,0) -> 7 | D36: 1 | E36: 6 | F36: 4 | G36: 5 | H36: 3 | I36: 8 | J36: 2 | K36: 9 | M36: 順位 | N36: =RANK(N35,$N35:$V35,0) -> 7 | O36: 1 | P36: 6 | Q36: 4 | R36: 5 | S36: 3 | T36: 8 | U36: 2 | V36: 9
A38: =A29+1 -> 5 | B38: 国語 | C38: 54 | D38: 72 | E38: 54 | F38: 57 | G38: 60 | H38: 60 | I38: 64 | J38: 49 | K38: 42 | M38: 国語 | N38: 45 | O38: 56 | P38: 45 | Q38: 47 | R38: 49 | S38: 49 | T38: 51 | U38: 42 | V38: 38
B39: 数学 | C39: 37 | D39: 64 | E39: 40 | F39: 47 | G39: 49 | H39: 52 | I39: 46 | J39: 57 | K39: 40 | M39: 数学 | N39: 45 | O39: 57 | P39: 46 | Q39: 49 | R39: 50 | S39: 52 | T39: 49 | U39: 54 | V39: 46
B40: 社会 | C40: 50 | D40: 75 | E40: 51 | F40: 60 | G40: 44 | H40: 65 | I40: 53 | J40: 72 | K40: 38 | M40: 社会 | N40: 46 | O40: 59 | P40: 47 | Q40: 51 | R40: 43 | S40: 54 | T40: 48 | U40: 57 | V40: 40
B41: 理科 | C41: 54 | D41: 69 | E41: 46 | F41: 59 | G41: 54 | H41: 77 | I41: 40 | J41: 69 | K41: 36 | M41: 理科 | N41: 49 | O41: 56 | P41: 45 | Q41: 51 | R41: 49 | S41: 60 | T41: 43 | U41: 56 | V41: 51
B42: 英語 | C42: 42 | D42: 66 | E42: 27 | F42: 49 | G42: 35 | H42: 38 | I42: 49 | J42: 29 | K42: 21 | M42: 英語 | N42: 49 | O42: 59 | P42: 42 | Q42: 52 | R42: 45 | S42: 47 | T42: 52 | U42: 43 | V42: 39
B43: ３科計 | C43: =C38+C39+C42 -> 133 | D43: 202 | E43: 121 | F43: 153 | G43: 144 | H43: 150 | I43: 159 | J43: =J38+J39+J42 -> 135 | K43: 103 | M43: ３科計 | N43: 46 | O43: 59 | P43: 44 | Q43: 50 | R43: 48 | S43: 49 | T43: 51 | U43: 46 | V43: 40
B44: ５科計 | C44: =SUM(C38:C42) -> 237 | D44: 346 | E44: 218 | F44: 272 | G44: 242 | H44: 292 | I44: 252 | J44: =SUM(J38:J42) -> 276 | K44: 177 | M44: ５科計 | N44: 47 | O44: 58 | P44: 44 | Q44: 50 | R44: 47 | S44: 53 | T44: 48 | U44: 51 | V44: 40
B45: 順位 | C45: =RANK(C44,$C44:$K44,0) -> 7 | D45: 1 | E45: 8 | F45: 4 | G45: 6 | H45: 2 | I45: 5 | J45: 3 | K45: 9 | M45: 順位 | N45: =RANK(N44,$N44:$V44,0) -> 6 | O45: 1 | P45: 8 | Q45: 4 | R45: 6 | S45: 2 | T45: 5 | U45: 3 | V45: 9
A47: =A38+1 -> 6 | B47: 国語 | C47: 63 | D47: 68 | E47: 48 | F47: 55 | G47: 57 | H47: 39 | I47: 49 | J47: 52 | K47: 28 | M47: 国語 | N47: 53 | O47: 56 | P47: 45 | Q47: 49 | R47: 50 | S47: 40 | T47: 46 | U47: 47 | V47: 34
B48: 数学 | C48: 38 | D48: 69 | E48: 49 | F48: 65 | G48: 51 | H48: 64 | I48: 55 | J48: 54 | K48: 44 | M48: 数学 | N48: 43 | O48: 59 | P48: 49 | Q48: 57 | R48: 50 | S48: 56 | T48: 52 | U48: 51 | V48: 46
B49: 社会 | C49: 44 | D49: 68 | E49: 43 | F49: 62 | G49: 32 | H49: 72 | I49: 49 | J49: 76 | K49: 17 | M49: 社会 | N49: 46 | O49: 57 | P49: 45 | Q49: 54 | R49: 40 | S49: 59 | T49: 48 | U49: 60 | V49: 33
B50: 理科 | C50: 50 | D50: 74 | E50: 68 | F50: 72 | G50: 68 | H50: 84 | I50: 44 | J50: 82 | K50: 32 | M50: 理科 | N50: 44 | O50: 58 | P50: 54 | Q50: 57 | R50: 54 | S50: 64 | T50: 40 | U50: 63 | V50: 33
B51: 英語 | C51: 39 | D51: 82 | E51: 24 | F51: 50 | G51: 37 | H51: 50 | I51: 55 | J51: 56 | K51: 29 | M51: 英語 | N51: 45 | O51: 64 | P51: 38 | Q51: 50 | R51: 44 | S51: 50 | T51: 52 | U51: 53 | V51: 41
B52: ３科計 | C52: =C47+C48+C51 -> 140 | D52: 219 | E52: 121 | F52: 170 | G52: 145 | H52: 153 | I52: 159 | J52: =J47+J48+J51 -> 162 | K52: 101 | M52: ３科計 | N52: 47 | O52: 61 | P52: 43 | Q52: 52 | R52: 48 | S52: 49 | T52: 50 | U52: 51 | V52: 39
B53: ５科計 | C53: =SUM(C47:C51) -> 234 | D53: 361 | E53: 232 | F53: 304 | G53: 245 | H53: 309 | I53: 252 | J53: =SUM(J47:J51) -> 320 | K53: 150 | M53: ５科計 | N53: 46 | O53: 60 | P53: 45 | Q53: 54 | R53: 47 | S53: 54 | T53: 48 | U53: 55 | V53: 36
B54: 順位 | C54: =RANK(C53,$C53:$K53,0) -> 7 | D54: 1 | E54: 8 | F54: 4 | G54: 6 | H54: 3 | I54: 5 | J54: 2 | K54: 9 | M54: 順位 | N54: =RANK(N53,$N53:$V53,0) -> 7 | O54: =RANK(O53,$N53:$V53,0) -> 1 | P54: 8 | Q54: 3 | R54: 6 | S54: 3 | T54: 5 | U54: 2 | V54: 9
A56: =A47+1 -> 7 | B56: 国語 | C56: 65 | D56: 81 | E56: 61 | F56: 76 | G56: 60 | H56: 69 | I56: 70 | J56: 66 | K56: 29 | M56: 国語 | N56: 51 | O56: 60 | P56: 49 | Q56: 58 | R56: 49 | S56: 54 | T56: 54 | U56: 52 | V56: 31
B57: 数学 | C57: 30 | D57: 60 | E57: 43 | F57: 62 | G57: 59 | H57: 63 | I57: 53 | J57: 70 | K57: 34 | M57: 数学 | N57: 41 | O57: 55 | P57: 47 | Q57: 56 | R57: 55 | S57: 57 | T57: 52 | U57: 60 | V57: 43
B58: 社会 | C58: 40 | D58: 66 | E58: 43 | F58: 51 | G58: 34 | H58: 52 | I58: 37 | J58: 74 | K58: 11 | M58: 社会 | N58: 46 | O58: 59 | P58: 47 | Q58: 51 | R58: 43 | S58: 52 | T58: 44 | U58: 63 | V58: 31
B59: 理科 | C59: 46 | D59: 80 | E59: 66 | F59: 74 | G59: 68 | H59: 76 | I59: 62 | J59: 88 | K59: 52 | M59: 理科 | N59: 38 | O59: 57 | P59: 49 | Q59: 54 | R59: 50 | S59: 55 | T59: 47 | U59: 62 | V59: 41
B60: 英語 | C60: 38 | D60: 86 | E60: 30 | F60: 68 | G60: 39 | H60: 44 | I60: 48 | J60: 43 | K60: 26 | M60: 英語 | N60: 45 | O60: 66 | P60: 41 | Q60: 58 | R60: 45 | S60: 47 | T60: 49 | U60: 47 | V60: 39
B61: ３科計 | C61: =C56+C57+C60 -> 133 | D61: 227 | E61: 134 | F61: 206 | G61: 158 | H61: 176 | I61: 171 | J61: =J56+J57+J60 -> 179 | K61: 89 | M61: ３科計 | N61: 45 | O61: 62 | P61: 45 | Q61: 58 | R61: 49 | S61: 53 | T61: 52 | U61: 53 | V61: 37
B62: ５科計 | C62: =SUM(C56:C60) -> 219 | D62: 373 | E62: 243 | F62: 331 | G62: 260 | H62: 304 | I62: 270 | J62: =SUM(J56:J60) -> 341 | K62: 152 | M62: ５科計 | N62: 43 | O62: 61 | P62: 46 | Q62: 56 | R62: 48 | S62: 53 | T62: 49 | U62: 57 | V62: 36
B63: 順位 | C63: =RANK(C62,$C62:$K62,0) -> 8 | D63: 1 | E63: 7 | F63: 3 | G63: 6 | H63: 4 | I63: 5 | J63: 2 | K63: 9 | M63: 順位 | N63: =RANK(N62,$N62:$V62,0) -> 8 | O63: =RANK(O62,$N62:$V62,0) -> 1 | P63: 7 | Q63: 3 | R63: 6 | S63: 4 | T63: 5 | U63: 2 | V63: 9
A65: =A56+1 -> 8 | B65: 国語 | C65: 34 | D65: 86 | E65: 50 | F65: 64 | G65: 67 | H65: 56 | I65: 59 | J65: 56 | K65: 38 | M65: 国語 | N65: 32 | O65: 69 | P65: 44 | Q65: 53 | R65: 55 | S65: 48 | T65: 50 | U65: 48 | V65: 35
B66: 数学 | C66: 26 | D66: 68 | E66: 34 | F66: 71 | G66: 75 | H66: 66 | I66: 56 | J66: 52 | K66: 38 | M66: 数学 | N66: 40 | O66: 58 | P66: 43 | Q66: 60 | R66: 61 | S66: 57 | T66: 53 | U66: 51 | V66: 45
B67: 社会 | C67: 43 | D67: 73 | E67: 43 | F67: 62 | G67: 38 | H67: 66 | I67: 39 | J67: 85 | K67: 17 | M67: 社会 | N67: 45 | O67: 60 | P67: 45 | Q67: 54 | R67: 43 | S67: 56 | T67: 43 | U67: 66 | V67: 32
B68: 理科 | C68: 44 | D68: 82 | E68: 62 | F68: 72 | G68: 64 | H68: 82 | I68: 64 | J68: 80 | K68: 46 | M68: 理科 | N68: 34 | O68: 59 | P68: 46 | Q68: 53 | R68: 47 | S68: 59 | T68: 47 | U68: 58 | V68: 36
B69: 英語 | C69: 33 | D69: 77 | E69: 16 | F69: 57 | G69: 40 | H69: 44 | I69: 47 | J69: 54 | K69: 26 | M69: 英語 | N69: 44 | O69: 62 | P69: 36 | Q69: 54 | R69: 47 | S69: 48 | T69: 50 | U69: 52 | V69: 41
B70: ３科計 | C70: =C65+C66+C69 -> 93 | D70: 231 | E70: 100 | F70: 192 | G70: 182 | H70: 166 | I70: 162 | J70: =J65+J66+J69 -> 162 | K70: 102 | M70: ３科計 | N70: 38 | O70: 64 | P70: 40 | Q70: 56 | R70: 55 | S70: 52 | T70: 51 | U70: 51 | V70: 40
B71: ５科計 | C71: =SUM(C65:C69) -> 180 | D71: 386 | E71: 205 | F71: 326 | G71: 284 | H71: 314 | I71: 265 | J71: =SUM(J65:J69) -> 327 | K71: 165 | M71: ５科計 | N71: 38 | O71: 63 | P71: 41 | Q71: 56 | R71: 51 | S71: 54 | T71: 48 | U71: 56 | V71: 37
B72: 順位 | C72: =RANK(C71,$C71:$K71,0) -> 8 | D72: 1 | E72: 7 | F72: 3 | G72: 5 | H72: 4 | I72: 6 | J72: 2 | K72: 9 | M72: 順位 | N72: =RANK(N71,$N71:$V71,0) -> 8 | O72: =RANK(O71,$N71:$V71,0) -> 1 | P72: 7 | Q72: 2 | R72: 5 | S72: 4 | T72: 6 | U72: 2 | V72: 9
A74: =A65+1 -> 9 | B74: 国語 | C74: 75 | D74: 74 | E74: 47 | F74: 58 | G74: 54 | H74: 61 | I74: 63 | J74: 63 | K74: 38 | M74: 国語 | N74: 57 | O74: 56 | P74: 38 | Q74: 46 | R74: 43 | S74: 48 | T74: 49 | U74: 49 | V74: 33
B75: 数学 | C75: 24 | D75: 68 | E75: 38 | F75: 34 | G75: 41 | H75: 57 | I75: 39 | J75: 48 | K75: 21 | M75: 数学 | N75: 42 | O75: 61 | P75: 48 | Q75: 47 | R75: 50 | S75: 56 | T75: 49 | U75: 53 | V75: 41
B76: 社会 | C76: 30 | D76: 69 | E76: 46 | F76: 61 | G76: 33 | H76: 67 | I76: 45 | J76: 80 | K76: 16 | M76: 社会 | N76: 38 | O76: 56 | P76: 45 | Q76: 53 | R76: 39 | S76: 56 | T76: 45 | U76: 62 | V76: 31
B77: 理科 | C77: 38 | D77: 84 | E77: 56 | F77: 52 | G77: 48 | H77: 88 | I77: 62 | J77: 72 | K77: 34 | M77: 理科 | N77: 36 | O77: 60 | P77: 45 | Q77: 43 | R77: 41 | S77: 62 | T77: 48 | U77: 53 | V77: 34
B78: 英語 | C78: 34 | D78: 75 | E78: 28 | F78: 49 | G78: 38 | H78: 42 | I78: 33 | J78: 46 | K78: 18 | M78: 英語 | N78: 45 | O78: 64 | P78: 42 | Q78: 52 | R78: 47 | S78: 49 | T78: 44 | U78: 51 | V78: 37
B79: ３科計 | C79: =C74+C75+C78 -> 133 | D79: 217 | E79: 113 | F79: 141 | G79: 133 | H79: 160 | I79: 135 | J79: =J74+J75+J78 -> 157 | K79: 77 | M79: ３科計 | N79: 47 | O79: 62 | P79: 43 | Q79: 48 | R79: 47 | S79: 51 | T79: 47 | U79: 51 | V79: 36
B80: ５科計 | C80: =SUM(C74:C78) -> 201 | D80: 370 | E80: 215 | F80: 254 | G80: 214 | H80: 315 | I80: 242 | J80: =SUM(J74:J78) -> 309 | K80: 127 | M80: ５科計 | N80: 42 | O80: 61 | P80: 43 | Q80: 48 | R80: 43 | S80: 55 | T80: 47 | U80: 54 | V80: 34
B81: 順位 | C81: =RANK(C80,$C80:$K80,0) -> 8 | D81: 1 | E81: 6 | F81: 4 | G81: 7 | H81: 2 | I81: 5 | J81: 3 | K81: 9 | M81: 順位 | N81: =RANK(N80,$N80:$V80,0) -> 8 | O81: =RANK(O80,$N80:$V80,0) -> 1 | P81: 6 | Q81: 4 | R81: 6 | S81: 2 | T81: 5 | U81: 3 | V81: 9
A83: =A74+1 -> 10 | B83: 国語 | C83: 54 | D83: 80 | E83: 48 | H83: 51 | I83: 57 | J83: 67 | K83: 51 | M83: 国語 | N83: 49 | O83: 67 | P83: 44 | Q83: 48 | R83: 42 | S83: 47 | T83: 51 | U83: 58 | V83: 47
B84: 数学 | C84: 12 | D84: 72 | E84: 31 | H84: 69 | I84: 45 | J84: 60 | K84: 29 | M84: 数学 | N84: 37 | O84: 64 | P84: 45 | Q84: 51 | R84: 54 | S84: 63 | T84: 52 | U84: 58 | V84: 44
B85: 社会 | C85: 40 | D85: 76 | E85: 44 | H85: 68 | I85: 54 | J85: 83 | K85: 28 | M85: 社会 | N85: 42 | O85: 60 | P85: 44 | Q85: 66 | R85: 57 | S85: 56 | T85: 49 | U85: 63 | V85: 36
B86: 理科 | C86: 30 | D86: 78 | E86: 56 | H86: 68 | I86: 52 | J86: 78 | K86: 28 | M86: 理科 | N86: 33 | O86: 58 | P86: 47 | Q86: 58 | R86: 56 | S86: 53 | T86: 45 | U86: 58 | V86: 32
B87: 英語 | C87: 40 | D87: 86 | E87: 27 | H87: 63 | I87: 50 | J87: 70 | K87: 25 | M87: 英語 | N87: 46 | O87: 64 | P87: 41 | Q87: 52 | R87: 43 | S87: 55 | T87: 50 | U87: 58 | V87: 40
B88: ３科計 | C88: =C83+C84+C87 -> 106 | D88: 238 | E88: 106 | F88: 0 | G88: 0 | H88: 183 | I88: 152 | J88: =J83+J84+J87 -> 197 | K88: 105 | M88: ３科計 | N88: 43 | O88: 66 | P88: 43 | Q88: 51 | R88: 46 | S88: 56 | T88: 51 | U88: 59 | V88: 42
B89: ５科計 | C89: =SUM(C83:C87) -> 176 | D89: 392 | E89: 206 | F89: 0 | G89: 0 | H89: 319 | I89: 258 | J89: =SUM(J83:J87) -> 358 | K89: 161 | M89: ５科計 | N89: 40 | O89: 64 | P89: 43 | Q89: 56 | R89: 51 | S89: 56 | T89: 49 | U89: 60 | V89: 38
B90: 順位 | C90: =RANK(C89,$C89:$K89,0) -> 6 | D90: 1 | E90: 5 | F90: 8 | G90: 8 | H90: 3 | I90: 4 | J90: 2 | K90: 7 | M90: 順位 | N90: =RANK(N89,$N89:$V89,0) -> 8 | O90: 1 | P90: 7 | Q90: 3 | R90: 5 | S90: 3 | T90: 6 | U90: 2 | V90: 9

Sheet 高校一覧
A1: 公立高校 | B1: 基準偏差値 | D1: 私立高校 | E1: 基準偏差値
A2: 安中総合 | B2: 42 | D2: 育英（進学・推薦） | E2: 47
A3: 群馬工専（環境都市） | B3: 64 | D3: 育英（進学・併願） | E3: 52
A4: 群馬工専（機械） | B4: 66 | D4: 育英（体育） | E4: 45
A5: 群馬工専（電子情報） | B5: 66 | D5: 育英（特A） | E5: 65
A6: 群馬工専（電子メディア） | B6: 66 | D6: 育英（特B） | E6: 61
A7: 群馬工専（物質） | B7: 65 | D7: 育英（特C) | E7: 55
A8: 下仁田 | B8: 37 | D8: 育英（特D) | E8: 52
A9: 高経大附（芸術・音楽） | B9: 54 | D9: 育英（保育・推薦） | E9: 43
A10: 高経大附（芸術・美術） | B10: 52 | D10: 育英（保育・併願） | E10: 47
A11: 高経大附（体育） | B11: 49 | D11: 商大（国際・推薦） | E11: 44
A12: 高経大附（普通・女子） | B12: 59 | D12: 商大（国際・併願） | E12: 48
A13: 高経大附（普通・男子） | B13: 57 | D13: 商大（情報・推薦） | E13: 42
A14: 高崎 | B14: 68 | D14: 商大（情報・併願） | E14: 46
A15: 高崎北 | B15: 59 | D15: 商大（進学・女子・推薦） | E15: 44
A16: 高崎工（機械） | B16: 51 | D16: 商大（進学・女子・併願） | E16: 48
A17: 高崎工（建築） | B17: 52 | D17: 商大（進学・男子・推薦） | E17: 45
A18: 高崎工（工業化学） | B18: 47 | D18: 商大（進学・男子・併願) | E18: 51
A19: 高崎工（情報技術） | B19: 55 | D19: 商大（特A） | E19: 65
A20: 高崎工（電気） | B20: 52 | D20: 商大（特B) | E20: 60
A21: 高崎工（土木） | B21: 47 | D21: 商大（特C) | E21: 56
A22: 高崎女 | B22: 67 | D22: 商大（特D-F) | E22: 46
A23: 高崎商（女子） | B23: 52 | D23: 健大（特A) | E23: 60
A24: 高崎商（男子） | B24: 49 | D24: 健大（特B) | E24: 58
A25: 高崎東 | B25: 54 | D25: 健大（特C) | E25: 55
A26: 富岡 | B26: 55 | D26: 健大（特D) | E26: 51
A27: 富岡実業（園芸科学） | B27: 40 | D27: 健大（特E) | E27: 47
A28: 富岡実業（食品科学） | B28: 43 | D28: 健大（特F) | E28: 44
A29: 富岡実業（生物生産） | B29: 39 | D29: 健大（特G) | E29: 39
A30: 富岡実業（電子機械） | B30: 44 | D30: 健大（特S） | E30: 63
A31: 富岡東 | B31: 51 | D31: 健大（特進・推薦） | E31: 50
A32: 榛名 | B32: 37 | D32: 健大（特進・併願） | E32: 54
A33: 藤岡北 | B33: 40 | D33: 健大（普通・併願） | E33: 47
A34: 藤岡工 | B34: 43 | D34: 農二（推薦） | E34: 53
A35: 藤岡中央（数理） | B35: 47 | D35: 農二（特A） | E35: 66
A36: 藤岡中央（文理） | B36: 44 | D36: 農二（特B） | E36: 61
A37: 松井田 | B37: 36 | D37: 農二（併願） | E37: 61
A38: 万場 | B38: 34
A39: 吉井 | B39: 46
